lending/lending_fUSD_20250224
["ID","MTS","AMOUNT","RATE_DAILY","PERIOD"]
[354245748,1740363049767,-500.0,0.0001652,2]
[354245749,1740363049776,-503.49854655,0.0001652,2]
[354245750,1740363049786,-500.0,0.0001652,2]
[354245751,1740363049795,-874.87,0.0001652,2]
[354245752,1740363049804,-500.0,0.0001652,2]
[354245753,1740363049814,-500.0,0.0001652,2]
[354245754,1740363049823,-872.96,0.0001652,2]
[354245755,1740363049833,-650.66,0.0001652,2]
[354245756,1740363049842,-685.87,0.0001652,2]
[354245757,1740363049852,-500.0,0.0001652,2]
[354245758,1740363049862,-500.0,0.0001652,2]
[354245759,1740363049871,-505.29115496,0.0001652,2]
[354245760,1740363049881,-500.0,0.0001652,2]
[354245761,1740363049890,-500.0,0.0001652,2]
[354245762,1740363049900,-500.0,0.0001652,2]
[354245763,1740363049909,-1302.51,0.0001652,2]
[354245764,1740363049918,-540.3,0.0001652,2]
[354245765,1740363049927,-500.0,0.0001652,2]
[354245766,1740363049936,-500.0,0.0001652,2]
[354245767,1740363049946,-670.91,0.0001652,2]
[354245768,1740363049955,-1081.14,0.0001652,2]
[354245769,1740363049964,-1413.73,0.0001652,2]
[354245770,1740363049973,-159.64558598,0.0001652,2]
[354245771,1740363049982,-622.62,0.0001652,2]
[354245772,1740363049991,-900.82,0.0001652,2]
[354245773,1740363050001,-500.0,0.0001652,2]
[354245774,1740363050010,-500.0,0.0001652,2]
[354245775,1740363050019,-151.0,0.0001652,2]
[354245776,1740363050028,-151.0,0.0001652,2]
[354245777,1740363050037,-182.967235,0.0001652,2]
[354245778,1740363050046,-634.76380954,0.0001652,2]
[354245779,1740363050055,-500.0,0.0001652,2]
[354245780,1740363050064,-1043.63,0.0001652,2]
[354245781,1740363050073,-1066.43,0.0001652,2]
[354245782,1740363050082,-500.0,0.0001652,2]
[354245783,1740363050091,-767.16,0.0001652,2]
[354245784,1740363050099,-613.02,0.0001652,2]
[354245785,1740363050109,-500.0,0.0001652,2]
[354245786,1740363050118,-1293.53,0.0001652,2]
[354245787,1740363050127,-669.81,0.0001652,2]
[354245788,1740363050136,-2065.52,0.0001652,2]
[354245789,1740363050145,-2090.11,0.0001652,2]
[354245790,1740363050154,-1000.0,0.0001652,2]
[354245791,1740363050163,-1074.47,0.0001652,2]
[354245792,1740363050172,-612.86,0.0001652,2]
[354245793,1740363050182,-500.0,0.0001652,2]
[354245794,1740363050191,-704.14,0.0001652,2]
[354245795,1740363050200,-500.0,0.0001652,2]
[354245796,1740363050209,-500.0,0.0001652,2]
[354245797,1740363050218,-2800.5,0.0001652,2]
[354245798,1740363050227,-1202.6,0.0001652,2]
[354245799,1740363050236,-981.15,0.0001652,2]
[354245800,1740363050245,-924.1,0.0001652,2]
[354245801,1740363050254,-298.06773893,0.0001652,2]
[354245802,1740363050264,-956.72,0.0001652,2]
[354245803,1740363050273,-500.0,0.0001652,2]
[354245804,1740363050282,-500.0,0.0001652,2]
[354245805,1740363050292,-1301.97,0.0001652,2]
[354245806,1740363050301,-1015.65,0.0001652,2]
[354245807,1740363050310,-500.0,0.0001652,2]
[354245808,1740363050319,-2836.32,0.0001652,2]
[354245809,1740363050327,-274.79,0.0001652,2]
[354245810,1740363050337,-711.33,0.0001652,2]
[354245811,1740363050346,-2478.45,0.0001652,2]
[354245812,1740363050357,-1757.0775481,0.0001652,2]
[354245813,1740363050378,-359.2924519,0.0001652,2]
[354245814,1740363050387,-154.08645673,0.0001652,2]
[354245815,1740363050398,-457.21461857,0.0001652,2]
[354245816,1740363050407,-500.0,0.0001652,2]
[354245817,1740363050416,-500.0,0.0001652,2]
[354245818,1740363050425,-272.89753121,0.0001652,2]
[354245819,1740363050441,-441.89246879,0.0001652,2]
[354245820,1740363050451,-1139.35,0.0001652,2]
[354245821,1740363050460,-1120.04,0.0001652,2]
[354245822,1740363050469,-634.91753121,0.0001652,2]
[354245823,1740363050481,-271.1,0.0001652,2]
[354245824,1740363050492,-260.74,0.0001652,2]
[354245827,1740363764909,234.59777897,0.0002,120]
[354245828,1740363909513,-19260.0,0.0001,2]
[354245829,1740363920377,1791.05930742,9e-05,2]
[354245830,1740363955480,14187.94014319,6.94e-05,2]
[354245831,1740363967437,7900.33765061,8e-05,2]
[354245832,1740363973357,371.86141588,0.0002,120]
[354245833,1740364086897,1188.04671295,9.5e-05,2]
[354245847,1740364232212,-391.5738094,9.9e-05,2]
[354245849,1740364232221,-300.0,9.989e-05,2]
[354245850,1740364232231,-8321.73396325,9.99e-05,2]
[354245851,1740364232240,-456.94189666,9.99e-05,2]
[354245853,1740364232250,-2371.89924273,0.0001,2]
[354245856,1740364232372,-6018.81893899,0.0001,2]
[354245857,1740364232384,-17417.96625061,0.0001,2]
[354245858,1740364232395,-18758.7828,0.0001,2]
[354245859,1740364232406,-1914.75277448,0.0001,2]
[354245860,1740364232426,-891.54979015,0.0001,2]
[354245861,1740364232440,-1777.80580762,0.0001,2]
[354245862,1740364232481,-8431.155802,0.0001,2]
[354245863,1740364232492,-8012.52408605,0.0001,2]
[354245864,1740364232535,-38704.2391853,0.0001,2]
[354245865,1740364232544,-107508.13886713,0.0001,2]
[354245866,1740364232554,-503.38981357,0.0001,2]
[354245867,1740364232563,-208.298103,0.00010958,2]
[354245868,1740364232573,-168.843564,0.00010958,2]
[354245869,1740364232582,-150.0,0.00010988,2]
[354245870,1740364232591,-420.0,0.00010988,2]
[354245871,1740364232601,-150.0,0.00010989,2]
[354245872,1740364232610,-208.298103,0.00011041,2]
[354245873,1740364232619,-168.843564,0.00011041,2]
[354245874,1740364232628,-208.298103,0.00011123,2]
[354245875,1740364232638,-168.843564,0.00011123,2]
[354245877,1740364232647,-208.298103,0.00011205,2]
[354245879,1740364232656,-168.843564,0.00011205,2]
[354245881,1740364232665,-208.298103,0.00011287,2]
[354245883,1740364232674,-168.843564,0.00011287,2]
[354245885,1740364232683,-208.298103,0.00011369,2]
[354245886,1740364232692,-168.843564,0.00011369,2]
[354245888,1740364232701,-587.0,0.00012087,2]
[354245889,1740364232714,-300.0,0.00013295,2]
[354245890,1740364232723,-500.0,0.00014,2]
[354245891,1740364232732,-1113.57,0.00014589,2]
[354245892,1740364232741,-526.71,0.000146,2]
[354245893,1740364232750,-150.0,0.00014918,2]
[354245895,1740364232759,-150.0,0.00014918,2]
[354245897,1740364232768,-150.0,0.00014918,2]
[354245899,1740364232778,-2000.0,0.00014948,2]
[354245901,1740364232787,-837.53,0.00014975,2]
[354245903,1740364232796,-150.0,0.00014997,2]
[354245905,1740364232805,-150.0,0.00015005,2]
[354245907,1740364232814,-355.72,0.00015006,2]
[354245909,1740364232823,-150.0,0.00015076,2]
[354245911,1740364232832,-150.0,0.00015092,2]
[354245913,1740364232841,-150.0,0.00015155,2]
[354245915,1740364232851,-150.0,0.0001518,2]
[354245917,1740364232860,-1000.0,0.00015199,2]
[354245919,1740364232870,-150.0,0.00015234,2]
[354245921,1740364232879,-23900.0,0.00015245,2]
[354245923,1740364232888,-150.0,0.00015267,2]
[354245925,1740364232897,-150.0,0.00015312,2]
[354245927,1740364232905,-526.38,0.00015326,2]
[354245929,1740364232914,-150.0,0.00015354,2]
[354245931,1740364232924,-150.0,0.00015391,2]
[354245933,1740364232932,-150.0,0.00015441,2]
[354245935,1740364232942,-150.0,0.0001547,2]
[354245937,1740364232951,-1213.0,0.000155,2]
[354245939,1740364232960,-167.55,0.00015518,2]
[354245941,1740364232969,-150.0,0.00015528,2]
[354245942,1740364232978,-500.0,0.00015536,2]
[354245943,1740364232987,-150.0,0.00015549,2]
[354245944,1740364232996,-150.0,0.00015616,2]
[354245945,1740364233005,-150.0,0.00015628,2]
[354245946,1740364233014,-150.0,0.00015648,2]
[354245947,1740364233023,-150.0,0.00015703,2]
[354245948,1740364233035,-150.0,0.00015707,2]
[354245949,1740364233045,-991.08,0.00015712,2]
[354245950,1740364233054,-1000.0,0.00015717,2]
[354245951,1740364233064,-150.0,0.00015786,2]
[354245952,1740364233075,-150.0,0.0001579,2]
[354245953,1740364233084,-988.65,0.00015829,2]
[354245954,1740364233093,-150.0,0.00015864,2]
[354245955,1740364233103,-150.0,0.00015865,2]
[354245956,1740364233113,-150.0,0.00015877,2]
[354245957,1740364233124,-150.0,0.00015944,2]
[354245958,1740364233133,-150.23715696,0.00015945,2]
[354245959,1740364233143,-150.0,0.00015965,2]
[354245960,1740364233153,-150.0,0.00015966,2]
[354245961,1740364233162,-150.0,0.0001597,2]
[354245962,1740364233172,-291.39,0.00015974,2]
[354245963,1740364233182,-879.67,0.00015974,2]
[354245964,1740364233191,-150.0,0.00016017,2]
[354245965,1740364233201,-151.39,0.00016018,2]
[354245966,1740364233210,-150.0,0.00016023,2]
[354245967,1740364233220,-1005.49,0.00016025,2]
[354245968,1740364233230,-196.56274397,0.00016031,2]
[354245969,1740364233239,-150.0,0.00016052,2]
[354245970,1740364233249,-1784.66,0.00016055,2]
[354245971,1740364233258,-150.84,0.00016055,2]
[354245972,1740364233268,-876.13,0.00016055,2]
[354245973,1740364233278,-439.11,0.00016055,2]
[354245974,1740364233288,-150.23715696,0.00016082,2]
[354245975,1740364233298,-150.0,0.00016102,2]
[354245976,1740364233307,-150.0,0.00016107,2]
[354245977,1740364233316,-150.0,0.00016138,2]
[354245978,1740364233326,-150.0,0.00016139,2]
[354245979,1740364233335,-150.0,0.00016181,2]
[354245980,1740364233344,-150.23715696,0.00016219,2]
[354245981,1740364233354,-150.0,0.00016224,2]
[354245982,1740364233363,-150.0,0.00016226,2]
[354245983,1740364233372,-150.0,0.00016234,2]
[354245984,1740364233382,-157.5473,0.00016238,2]
[354245985,1740364233391,-150.0,0.0001626,2]
[354245986,1740364233400,-235.3572182,0.00016267,2]
[354245987,1740364233409,-200.0,0.000163,11]
[354245988,1740364233418,-200.0,0.000163,11]
[354245989,1740364233428,-200.0,0.000163,10]
[354245990,1740364233438,-200.0,0.000163,10]
[354245991,1740364233448,-197.0,0.000163,11]
[354245992,1740364233457,-197.0,0.000163,11]
[354245993,1740364233467,-197.0,0.000163,12]
[354245994,1740364233476,-197.0,0.000163,14]
[354245995,1740364233485,-197.31,0.000163,14]
[354245996,1740364233495,-200.0,0.000163,5]
[354245997,1740364233504,-150.0,0.00016311,2]
[354245998,1740364233513,-150.0,0.00016314,2]
[354245999,1740364233523,-317.44710534,0.00016338,2]
[354246000,1740364233532,-168.33679211,0.00016338,2]
[354246001,1740364233541,-1265.24491167,0.00016338,2]
[354246002,1740364233550,-12811.2821,0.00016338,2]
[354246003,1740364233559,-610.85,0.00016338,2]
[354246004,1740364233568,-2500.0,0.00016338,2]
[354246005,1740364233577,-150.0,0.00016339,2]
[354246006,1740364233587,-4000.0,0.0001635,2]
[354246007,1740364233596,-1265.24491166,0.00016356,2]
[354246008,1740364233605,-150.23715696,0.00016356,2]
[354246009,1740364233614,-1265.24491166,0.00016374,2]
[354246010,1740364233624,-989.07,0.00016379,2]
[354246011,1740364233633,-1265.24491166,0.00016392,2]
[354246012,1740364233642,-21764.09416053,0.00016397,10]
[354246013,1740364233651,-500.0,0.000164,5]
[354246014,1740364233660,-150.0,0.00016401,2]
[354246015,1740364233669,-150.0,0.00016417,2]
[354246016,1740364233678,-999.99,0.0001642,2]
[354246017,1740364233687,-7502.8507,0.0001642,2]
[354246018,1740364233696,-150.0,0.00016422,2]
[354246019,1740364233705,-500.0,0.00016427,2]
[354246020,1740364233715,-2000.0,0.00016427,2]
[354246021,1740364233724,-500.0,0.00016427,2]
[354246022,1740364233733,-200.0,0.00016427,2]
[354246023,1740364233742,-376.55645334,0.00016427,2]
[354246024,1740364233751,-150.0,0.00016429,2]
[354246025,1740364233761,-504.37068136,0.00016429,2]
[354246026,1740364233771,-500.0,0.00016429,2]
[354246027,1740364233780,-504.62092385,0.00016429,2]
[354246028,1740364233790,-208.298103,0.00016438,2]
[354246029,1740364233798,-168.843564,0.00016438,2]
[354246030,1740364233808,-504.73149995,0.00016438,2]
[354246031,1740364233817,-747.58,0.00016438,2]
[354246032,1740364233826,-500.0,0.00016438,2]
[354246033,1740364233835,-500.0,0.00016438,2]
[354246034,1740364233844,-500.0,0.00016438,2]
[354246035,1740364233854,-500.0,0.00016438,2]
[354246036,1740364233863,-748.64,0.00016438,2]
[354246037,1740364233873,-500.0,0.00016438,2]
[354246038,1740364233882,-500.0,0.00016438,2]
[354246039,1740364233893,-504.28775452,0.00016438,2]
[354246040,1740364233902,-500.0,0.00016438,2]
[354246041,1740364233911,-500.0,0.00016438,2]
[354246042,1740364233921,-506.36807506,0.00016438,2]
[354246043,1740364233930,-512.35230425,0.00016438,2]
[354246254,1740364240661,-185.14086324,0.00011099,2]
[354246256,1740364240671,-93.45913675,0.0001641,2]
[354246526,1740364243428,-185.14086322,0.00011099,2]
[354246528,1740364243437,-314.85913678,0.00013,2]
[354246534,1740364243481,-235.14086322,0.00013,2]
[354246536,1740364243490,-1171.78577491,0.0001641,2]
[354246538,1740364243500,-1265.24491166,0.00016428,2]
[354246540,1740364243509,-3.67769575,0.00016438,2]
[354246542,1740364243518,-500.0,0.00016438,2]
[354246544,1740364243527,-505.34260813,0.00016438,2]
[354246546,1740364243536,-504.99187523,0.00016438,2]
[354246548,1740364243546,-500.0,0.00016438,2]
[354246550,1740364243555,-500.0,0.00016438,2]
[354246552,1740364243564,-500.0,0.00016438,2]
[354246554,1740364243573,-566.02,0.00016438,2]
[354246556,1740364243582,-634.36,0.00016438,2]
[354246558,1740364243591,-504.81,0.00016438,2]
[354246559,1740364243601,-648.75,0.00016438,2]
[354246561,1740364243610,-500.0,0.00016438,2]
[354246563,1740364243620,-500.0,0.00016438,2]
[354246565,1740364243629,-592.57627111,0.00016438,2]
[354246571,1740364243675,-600.0,0.00015,2]
[354246573,1740364243684,-338.43372889,0.00016438,2]
[354246575,1740364243693,-211.56627111,0.00016438,2]
[354246598,1740364246432,-40.34614224,0.00016438,2]
[354246599,1740364246451,-288.80758665,0.00016438,2]
[354246600,1740364246460,-24.6815319,0.00016438,2]
[354247271,1740364535896,218.25,8.767e-05,2]
[354247273,1740365398732,1012.89065565,0.00016438,60]
[354247274,1740365425527,500.0,0.0002,120]
[354247282,1740365432362,-175.75087306,0.00010858,2]
[354247283,1740365432371,-150.0,0.00010876,2]
[354247284,1740365432380,-102.46008826,0.00010895,2]
[354247285,1740365432391,-397.53991174,0.00010895,2]
[354247286,1740365432401,-123.66902159,0.00010932,2]
[354247287,1740365432419,-26.33097841,0.00010932,2]
[354247288,1740365432428,-182.155968,0.00010958,2]
[354247289,1740365432439,-220.308088,0.00010958,2]
[354247290,1740365432449,-177.989439,0.00010958,2]
[354247291,1740365432458,-247.396658,0.00010958,2]
[354247292,1740365432467,-284.335165,0.00010958,2]
[354247293,1740365432478,-156.856201,0.00010958,2]
[354247294,1740365432487,-220.308076,0.00010958,2]
[354247295,1740365432496,-177.989432,0.00010958,2]
[354247296,1740365432505,-159.946461,0.00010958,2]
[354247297,1740365432514,-174.150933,0.00010958,2]
[354247298,1740365432524,-155.403759,0.00010958,2]
[354247299,1740365432533,-152.147153,0.00010958,2]
[354247300,1740365432542,-165.214594,0.00010958,2]
[354247301,1740365432551,-152.147152,0.00010958,2]
[354247302,1740365432561,-164.128443,0.00010958,2]
[354247303,1740365432570,-164.128443,0.00011205,2]
[354247304,1740365432579,-152.147152,0.00011369,2]
[354247305,1740365432588,-576.79363972,0.00011709,2]
[354247306,1740365432598,-150.0,0.00011944,2]
[354247307,1740365432607,-500.0,0.00011944,2]
[354247308,1740365432616,-500.0,0.00011944,2]
[354247309,1740365432626,-150.0,0.00011944,2]
[354247310,1740365432635,-2917.49624242,0.0001232,2]
[354247311,1740365432645,-1496.65,0.00013475,2]
[354247312,1740365432654,-175.75087304,0.00013548,2]
[354247313,1740365432664,-4351.01869084,0.00014622,2]
[354247314,1740365432673,-1654.9,0.0001469,2]
[354247315,1740365432682,-750.33,0.00014696,2]
[354247316,1740365432692,-701.78,0.00014809,2]
[354247317,1740365432701,-1000.0,0.00014809,2]
[354247318,1740365432710,-250.44772617,0.00014854,2]
[354247319,1740365432719,-791.05,0.00014916,2]
[354247320,1740365432728,-150.0,0.00014918,2]
[354247321,1740365432737,-150.0,0.00014918,2]
[354247322,1740365432746,-150.0,0.00014918,2]
[354247323,1740365432755,-150.80762793,0.00014918,2]
[354247324,1740365432765,-3022.13054949,0.00014955,2]
[354247325,1740365432774,-791.05,0.00014994,2]
[354247326,1740365432782,-250.0,0.0001501,2]
[354247327,1740365432792,-200.0,0.0001505,2]
[354247328,1740365432801,-151.0,0.00015054,2]
[354247329,1740365432810,-2000.0,0.00015055,2]
[354247330,1740365432819,-791.05,0.00015073,2]
[354247331,1740365432828,-200.0,0.00015082,2]
[354247332,1740365432837,-727.74,0.00015093,2]
[354247333,1740365432846,-791.05,0.00015151,2]
[354247334,1740365432855,-150.0,0.00015194,2]
[354247335,1740365432864,-2228.10065767,0.00015202,2]
[354247336,1740365432874,-477.44,0.00015209,2]
[354247337,1740365432883,-791.05,0.0001523,2]
[354247338,1740365432892,-167.55,0.00015244,2]
[354247339,1740365432901,-791.05,0.00015308,2]
[354247341,1740365432910,-150.0,0.00015332,2]
[354247342,1740365432919,-791.05,0.00015387,2]
[354247344,1740365432929,-1173.92,0.00015465,2]
[354247346,1740365432938,-791.05,0.00015465,2]
[354247348,1740365432946,-150.0,0.0001547,2]
[354247350,1740365432955,-218.25,0.00015516,2]
[354247352,1740365432964,-176.47,0.00015519,2]
[354247354,1740365432973,-791.05,0.00015544,2]
[354247356,1740365432982,-791.05,0.00015622,2]
[354247358,1740365432991,-791.05,0.00015701,2]
[354247360,1740365433000,-1496.65,0.00015739,2]
[354247362,1740365433009,-150.0,0.00015747,2]
[354247364,1740365433019,-150.0,0.00015747,2]
[354247366,1740365433028,-150.0,0.00015747,2]
[354247368,1740365433037,-791.05,0.00015779,2]
[354247370,1740365433046,-791.05,0.00015858,2]
[354247372,1740365433056,-791.05,0.00015936,2]
[354247374,1740365433066,-791.05,0.00016015,2]
[354247376,1740365433075,-150.0,0.00016023,2]
[354247379,1740365433085,-791.05,0.00016093,2]
[354247382,1740365433095,-150.0,0.00016161,2]
[354247385,1740365433105,-791.05,0.00016172,2]
[354247388,1740365433114,-343.3909973,0.00016189,2]
[354247391,1740365433124,-175.75087304,0.00016238,2]
[354247394,1740365433134,-1046.4433,0.00016238,2]
[354247397,1740365433144,-791.05,0.0001625,2]
[354247400,1740365433153,-506.08,0.00016267,7]
[354247402,1740365433163,-506.08,0.00016267,7]
[354247404,1740365433172,-506.08,0.00016267,7]
[354247406,1740365433181,-506.08,0.00016267,7]
[354247408,1740365433190,-150.0,0.00016299,2]
[354247410,1740365433200,-791.05,0.00016329,2]
[354247412,1740365433209,-1948.76726429,0.00016338,2]
[354247414,1740365433218,-164.50606373,0.00016338,2]
[354247416,1740365433228,-2360.5186,0.00016338,2]
[354247418,1740365433237,-5756.2773,0.00016338,2]
[354247419,1740365433246,-10397.4206,0.00016338,2]
[354247421,1740365433255,-4962.14,0.00016338,2]
[354247423,1740365433264,-3329.29063642,0.00016351,2]
[354247425,1740365433274,-1948.76726421,0.00016356,2]
[354247427,1740365433284,-1948.76726421,0.00016374,2]
[354247429,1740365433293,-439.43,0.00016385,2]
[354247431,1740365433303,-882.03,0.00016385,2]
[354247433,1740365433312,-1948.76726421,0.00016392,2]
[354247435,1740365433321,-3578.39287192,0.00016392,10]
[354247437,1740365433331,-791.05,0.00016407,2]
[354247439,1740365433340,-1948.76726421,0.0001641,2]
[354247441,1740365433350,-737.01614214,0.0001642,2]
[354247443,1740365433360,-150.0,0.00016424,2]
[354247445,1740365433370,-2000.0,0.00016427,2]
[354247447,1740365433380,-500.0,0.00016427,2]
[354247448,1740365433389,-200.0,0.00016427,2]
[354247450,1740365433399,-207.99118555,0.00016428,2]
[354247452,1740365433409,-1948.76726421,0.00016428,2]
[354247454,1740365433418,-424.3607672,0.00016428,2]
[354247456,1740365433428,-150.0,0.00016432,2]
[354247458,1740365433441,-150.0,0.00016433,2]
[354247460,1740365433451,-560.25669582,0.00016437,2]
[354247463,1740365433461,-500.0,0.00016437,2]
[354247465,1740365433472,-500.0,0.00016437,2]
[354247466,1740365433483,-250.88824951,0.00016437,2]
[354247469,1740365433493,-172.8484261,0.00016437,2]
[354247470,1740365433503,-500.0,0.00016437,2]
[354247472,1740365433512,-500.0,0.00016437,2]
[354247474,1740365433524,-500.0,0.00016437,2]
[354247476,1740365433534,-500.0,0.00016437,2]
[354247478,1740365433544,-500.0,0.00016437,2]
[354247480,1740365433553,-500.0,0.00016437,2]
[354247482,1740365433563,-500.0,0.00016437,2]
[354247484,1740365433573,-443.44561835,0.00016437,2]
[354247486,1740365433582,-500.0,0.00016437,2]
[354247488,1740365433592,-500.0,0.00016437,2]
[354247490,1740365433601,-500.0,0.00016437,2]
[354247492,1740365433610,-500.0,0.00016437,2]
[354247494,1740365433620,-500.0,0.00016437,2]
[354247496,1740365433629,-500.0,0.00016437,2]
[354247498,1740365433638,-500.0,0.00016437,2]
[354247500,1740365433648,-500.0,0.00016437,2]
[354247502,1740365433657,-500.0,0.00016437,2]
[354247504,1740365433667,-500.0,0.00016437,2]
[354247506,1740365433677,-500.0,0.00016437,2]
[354247508,1740365433687,-500.0,0.00016437,2]
[354247510,1740365433696,-500.0,0.00016437,2]
[354247512,1740365433707,-500.0,0.00016437,2]
[354247513,1740365433716,-500.0,0.00016437,2]
[354247516,1740365433726,-500.0,0.00016437,2]
[354247518,1740365433736,-450.0,0.00016437,2]
[354247520,1740365433746,-500.0,0.00016437,2]
[354247521,1740365433755,-500.0,0.00016437,2]
[354247524,1740365433765,-500.0,0.00016437,2]
[354247526,1740365433775,-500.0,0.00016437,2]
[354247528,1740365433785,-500.0,0.00016437,2]
[354247530,1740365433794,-500.0,0.00016437,2]
[354247532,1740365433804,-500.0,0.00016437,2]
[354247534,1740365433814,-500.0,0.00016437,2]
[354247535,1740365433823,-500.0,0.00016437,2]
[354247537,1740365433832,-500.0,0.00016437,2]
[354247539,1740365433842,-500.0,0.00016437,2]
[354247541,1740365433852,-500.0,0.00016437,2]
[354247543,1740365433861,-500.0,0.00016437,2]
[354247546,1740365433871,-500.0,0.00016437,2]
[354247548,1740365433881,-500.0,0.00016437,2]
[354247550,1740365433891,-350.0,0.00016437,2]
[354247552,1740365433900,-23919.92436699,0.00016438,5]
[354247554,1740365433914,-1687.57308693,0.00016438,5]
[354247556,1740365433925,-1075.43,0.00016438,5]
[354247559,1740365433941,-3821.04146125,0.00016438,5]
[354247561,1740365433953,-1820.18623878,0.00016438,5]
[354247563,1740365433964,-3149.999975,0.00016438,5]
[354247565,1740365433975,-10301.64942215,0.00016438,5]
[354247567,1740365433984,-500.0,0.00016438,2]
[354247569,1740365433994,-500.0,0.00016438,2]
[354247571,1740365434003,-502.05,0.00016438,2]
[354247573,1740365434012,-500.0,0.00016438,2]
[354247575,1740365434021,-500.0,0.00016438,2]
[354247577,1740365434030,-501.77566664,0.00016438,2]
[354247579,1740365434039,-280.41368845,0.00016438,2]
[354247581,1740365434048,-635.84,0.00016438,2]
[354247583,1740365434057,-298.10040272,0.00016438,2]
[354247585,1740365434068,-205.6108507,0.00016438,2]
[354247587,1740365434078,-500.0,0.00016438,2]
[354247589,1740365434087,-500.0,0.00016438,2]
[354247591,1740365434096,-666.3,0.00016438,2]
[354247593,1740365434106,-503.79911513,0.00016438,2]
[354247595,1740365434116,-500.0,0.00016438,2]
[354247597,1740365434125,-634.82,0.00016438,2]
[354247599,1740365434134,-500.0,0.00016438,2]
[354247601,1740365434144,-87.62883419,0.00016438,2]
[354247604,1740365434155,-359.023009,0.00016438,2]
[354247606,1740365434167,-303.04274977,0.00016438,2]
[354247609,1740365434187,-250.30540704,0.00016438,2]
[354247611,1740365434196,-150.47459296,0.00016438,2]
[354247614,1740365434212,-349.52540704,0.00016438,2]
[354247615,1740365434225,-500.0,0.00016438,2]
[354247617,1740365434234,-321.39510996,0.00016438,2]
[354247620,1740365434246,-182.05419453,0.00016438,2]
[354247622,1740365434255,-500.0,0.00016438,2]
[354247624,1740365434265,-500.0,0.00016438,2]
[354247626,1740365434276,-500.0,0.00016438,2]
[354247628,1740365434286,-191.92293898,0.00016438,7]
[354247630,1740365434298,-308.07706102,0.00016438,7]
[354247632,1740365434308,-640.40161331,0.00016438,2]
[354247634,1740365434317,-500.0,0.00016438,2]
[354247635,1740365434326,-218.70593499,0.00016438,2]
[354247637,1740365434336,-500.0,0.00016438,2]
[354247639,1740365434345,-609.0,0.00016438,2]
[354247640,1740365434355,-500.0,0.00016438,2]
[354247642,1740365434364,-500.0,0.00016438,2]
[354247644,1740365434374,-503.65897009,0.00016438,2]
[354247646,1740365434383,-500.0,0.00016438,2]
[354247648,1740365434392,-505.26799318,0.00016438,2]
[354247649,1740365434401,-500.0,0.00016438,2]
[354247651,1740365434412,-500.0,0.00016438,2]
[354247653,1740365434421,-612.06,0.00016438,2]
[354247655,1740365434431,-524.83,0.00016438,2]
[354247657,1740365434444,-500.0,0.00016438,2]
[354247658,1740365434453,-575.66,0.00016438,2]
[354247660,1740365434462,-242.83166967,0.00016438,2]
[354247662,1740365434472,-500.0,0.00016438,2]
[354247664,1740365434483,-500.0,0.00016438,2]
[354247666,1740365434492,-500.0,0.00016438,2]
[354247667,1740365434502,-640.22,0.00016438,2]
[354247669,1740365434512,-224.29255678,0.00016438,2]
[354247671,1740365434524,-208.32254874,0.00016438,2]
[354247673,1740365434535,-500.0,0.00016438,2]